fUST/lending_fUST_20250718
["ID","MTS","AMOUNT","RATE_DAILY","PERIOD"]
[373041645,1752845441134,-164.82878748,0.00018338,2]
[373041646,1752845441143,-460.0,0.00018338,2]
[373041647,1752845441154,-421.87751188,0.00018339,2]
[373041648,1752845441163,-460.0,0.00018339,2]
[373041649,1752845441174,-460.0,0.00018339,2]
[373041650,1752845441183,-460.0,0.00018339,2]
[373041651,1752845441196,-467.22,0.00018339,2]
[373041652,1752845441214,-460.0,0.00018339,2]
[373041653,1752845441228,-1122.06,0.00018339,2]
[373041654,1752845441242,-460.0,0.00018339,2]
[373041655,1752845441253,-460.0,0.00018339,2]
[373041656,1752845441267,-625.42,0.00018339,2]
[373041657,1752845441280,-460.0,0.00018339,2]
[373041658,1752845441294,-460.0,0.00018339,2]
[373041659,1752845441308,-460.0,0.00018339,2]
[373041660,1752845441322,-460.0,0.00018339,2]
[373041661,1752845441337,-460.0,0.0001834,2]
[373041662,1752845441351,-570.71,0.0001834,2]
[373041663,1752845441365,-460.0,0.0001834,2]
[373041664,1752845441378,-460.0,0.0001834,2]
[373041665,1752845441390,-606.5,0.00018437,2]
[373041666,1752845441403,-2692.46,0.00018437,2]
[373041667,1752845441418,-681.38,0.00018437,2]
[373041668,1752845441431,-1477.31,0.00018437,2]
[373041669,1752845441443,-2198.72,0.00018437,2]
[373041670,1752845441457,-460.0,0.00018438,2]
[373041671,1752845441469,-460.0,0.00018438,2]
[373041672,1752845441481,-460.0,0.00018438,2]
[373041673,1752845441495,-1276.13,0.00018438,2]
[373041674,1752845441508,-3019.79,0.00018438,2]
[373041675,1752845441521,-892.99,0.00018438,2]
[373041676,1752845441534,-2808.17597565,0.00018474,2]
[373041677,1752845441552,-927.88219756,0.00018474,2]
[373041678,1752845441569,-2410.95895755,0.00018474,2]
[373041679,1752845441580,-1500.0,0.00018512,2]
[373041680,1752845441591,-1075.48,0.0001859,2]
[373041681,1752845441602,-2259.36,0.00018612,2]
[373041682,1752845441614,-198.16352245,0.00018612,2]
[373041683,1752845441632,-2770.53647755,0.00018612,2]
[373041684,1752845441648,-460.0,0.00018612,2]
[373041685,1752845441659,-857.6004387,0.00018612,2]
[373041686,1752845441674,-808.7495613,0.00018612,2]
[373041687,1752845441689,-1468.03,0.00018612,2]
[373041688,1752845441702,-1176.53747588,0.00018612,2]
[373041689,1752845441717,-173.21252412,0.00018612,2]
[373041690,1752845441728,-607.46,0.00018612,2]
[373041691,1752845441741,-460.0,0.00018612,2]
[373041692,1752845441754,-460.0,0.00018613,2]
[373041693,1752845441765,-460.0,0.00018613,2]
[373041694,1752845441777,-460.0,0.00018613,2]
[373041695,1752845441789,-467.22,0.00018613,2]
[373041696,1752845441800,-103.64811917,0.00018613,2]
[373041697,1752845441814,-356.35188083,0.00018613,2]
[373041698,1752845441825,-1122.06,0.00018613,2]
[373041699,1752845441837,-460.0,0.00018613,2]
[373041700,1752845441848,-191.68811917,0.00018613,2]
[373041701,1752845441965,-303.43,0.00016694,2]
[373041702,1752845441978,-156.57,0.00016694,2]
[373041703,1752845441989,-268.31188083,0.00018613,2]
[373041704,1752845442001,-625.42,0.00018613,2]
[373041705,1752845442013,-460.0,0.00018613,2]
[373041706,1752845442024,-460.0,0.00018613,2]
[373041707,1752845442035,-354.47709091,0.00018613,2]
[373041715,1752845443905,-460.0,0.00016691,2]
[373041716,1752845443915,-500.0,0.00016969,2]
[373041717,1752845443924,-193.96206351,0.00016969,2]
[373041718,1752845443933,-484.17157348,0.00016969,2]
[373041719,1752845443942,-105.52290909,0.00018613,2]
[373041720,1752845443953,-376.34345474,0.00018613,2]
[373041731,1752845446793,-460.0,0.00016691,2]
[373041732,1752845446803,-500.0,0.00016969,2]
[373041733,1752845446812,-500.0,0.00016969,2]
[373041734,1752845446822,-349.58374331,0.00016969,2]
[373041735,1752845446854,-5.09930609,0.00016969,2]
[373041736,1752845446864,-83.65654526,0.00018613,2]
[373041737,1752845446874,-460.0,0.00018614,2]
[373041738,1752845446883,-1.71508811,0.00018614,2]
[373041739,1752845457025,207.4619839,0.00016172,2]
[373041740,1752845528404,2609.9081671,0.00015852,2]
[373041746,1752845852698,295.534929,0.00013699,2]
[373041761,1752846187576,150.0,0.00015317,2]
[373042099,1752846338179,-387.84777042,0.00016569,2]
[373042100,1752846338201,-731.23018157,0.00016591,2]
[373042101,1752846338221,-1200.0,0.00016669,2]
[373042102,1752846338242,-300.0,0.00016669,2]
[373042103,1752846338263,-300.0,0.00016669,2]
[373042104,1752846338283,-300.0,0.00016669,2]
[373042105,1752846338304,-300.0,0.00016669,2]
[373042106,1752846338326,-1200.0,0.00016669,2]
[373042107,1752846338348,-300.0,0.00016669,2]
[373042108,1752846338369,-460.0,0.00016672,2]
[373042109,1752846338395,-471.12,0.00016672,2]
[373042110,1752846338418,-381.45939491,0.00016672,2]
[373042115,1752846427154,-1200.0,0.00016671,2]
[373042116,1752846427179,-300.0,0.00016671,2]
[373042117,1752846427207,-228.60060509,0.00016672,2]
[373042118,1752846427232,-460.0,0.00016672,2]
[373042119,1752846427258,-3111.22,0.00016672,2]
[373042120,1752846427285,-1298.35,0.00016672,2]
[373042121,1752846427309,-7049.83461245,0.00016672,2]
[373042122,1752846427332,-460.0,0.0001669,2]
[373042123,1752846427355,-460.0,0.0001669,2]
[373042124,1752846427379,-460.0,0.0001669,2]
[373042125,1752846427403,-460.0,0.0001669,2]
[373042126,1752846427426,-155.93790864,0.0001669,2]
[373042127,1752846427451,-460.0,0.0001669,2]
[373042128,1752846427479,-460.0,0.0001669,2]
[373042129,1752846427507,-1188.97,0.0001669,2]
[373042130,1752846427531,-460.0,0.0001669,2]
[373042131,1752846427553,-460.0,0.0001669,2]
[373042132,1752846427578,-460.0,0.0001669,2]
[373042133,1752846427602,-461.42931515,0.0001669,2]
[373042134,1752846427626,-452.64071847,0.0001669,2]
[373042135,1752846427651,-460.0,0.0001669,2]
[373042136,1752846427673,-460.0,0.0001669,2]
[373042137,1752846427696,-460.0,0.0001669,2]
[373042138,1752846427724,-460.0,0.0001669,2]
[373042139,1752846427764,-460.0,0.0001669,2]
[373042140,1752846427790,-462.36053077,0.0001669,2]
[373042141,1752846427817,-460.0,0.0001669,2]
[373042142,1752846427843,-460.0,0.0001669,2]
[373042143,1752846427870,-460.0,0.0001669,2]
[373042144,1752846427903,-460.0,0.00016691,2]
[373042145,1752846427928,-460.0,0.00016691,2]
[373042146,1752846427956,-460.0,0.00016691,2]
[373042147,1752846427982,-460.0,0.00016691,2]
[373042148,1752846428008,-460.0,0.00016691,2]
[373042149,1752846428034,-460.0,0.00016691,2]
[373042150,1752846428062,-460.0,0.00016691,2]
[373042151,1752846428087,-460.0,0.00016691,2]
[373042152,1752846428112,-460.0,0.00016691,2]
[373042153,1752846428134,-460.0,0.00016691,2]
[373042154,1752846428157,-460.0,0.00016691,2]
[373042155,1752846428184,-372.9396039,0.00016691,2]
[373042156,1752846428213,-460.0,0.00016691,2]
[373042157,1752846428236,-460.0,0.00016691,2]
[373042158,1752846428259,-460.0,0.00016691,2]
[373042159,1752846428283,-460.0,0.00016691,2]
[373042160,1752846428307,-460.0,0.00016691,2]
[373042161,1752846428330,-194.1,0.00016691,2]
[373042162,1752846428354,-460.0,0.00016691,2]
[373042163,1752846428377,-460.0,0.00016691,2]
[373042164,1752846428400,-460.0,0.00016691,2]
[373042165,1752846428423,-460.0,0.00016691,2]
[373042166,1752846428449,-362.99024277,0.00016691,2]
[373042167,1752846434111,-460.0,0.0001669,2]
[373042168,1752846434137,-2892.86,0.0001669,2]
[373042169,1752846434160,-460.0,0.0001669,2]
[373042170,1752846434183,-97.00975723,0.00016691,2]
[373042171,1752846434208,-460.0,0.00016691,2]
[373042172,1752846434236,-322.40489331,0.00016691,2]
[373042174,1752846454103,-392.15755678,0.0001669,2]
[373042198,1752846568108,-300.0,0.00016671,2]
[373042199,1752846568131,-460.0,0.00016672,2]
[373042200,1752846568154,-1845.69,0.00016672,2]
[373042201,1752846568176,-460.0,0.00016672,2]
[373042202,1752846568205,-460.0,0.00016672,2]
[373042203,1752846568231,-1222.58,0.00016672,2]
[373042204,1752846568252,-67.84244322,0.0001669,2]
[373042205,1752846568273,-460.0,0.0001669,2]
[373042206,1752846568294,-140.30520532,0.0001669,2]
[373042231,1752846632143,-43.57306186,0.00016689,2]
[373042232,1752846632156,-256.42693814,0.00016689,2]
[373042233,1752846632166,-300.0,0.00016689,2]
[373042234,1752846632175,-153.74686188,0.00016689,2]
[373042307,1752846638163,-146.25313812,0.00016689,2]
[373042309,1752846638173,-300.0,0.00016689,2]
[373042311,1752846638182,-257.26434487,0.00016689,2]
[373042313,1752846638198,-942.73565513,0.00016689,2]
[373042315,1752846638207,-319.69479468,0.0001669,2]
[373042317,1752846638217,-460.0,0.0001669,2]
[373042319,1752846638226,-460.0,0.0001669,2]
[373042321,1752846638235,-463.75,0.0001669,2]
[373042323,1752846638244,-460.0,0.0001669,2]
[373042325,1752846638253,-460.0,0.0001669,2]
[373042327,1752846638263,-86.21955019,0.0001669,2]
[373042329,1752846638274,-427.36640257,0.0001669,2]
[373042331,1752846638283,-2793.77261271,0.0001669,2]
[373042334,1752846638299,-1063.27738729,0.0001669,2]
[373042336,1752846638309,-460.0,0.0001669,2]
[373042338,1752846638319,-460.0,0.0001669,2]
[373042340,1752846638328,-460.0,0.0001669,2]
[373042342,1752846638338,-460.0157307,0.0001669,2]
[373042344,1752846638347,-329.01881849,0.0001669,2]
[373042346,1752846638357,-460.0,0.0001669,2]
[373042348,1752846638367,-460.0,0.0001669,2]
[373042350,1752846638376,-460.0,0.0001669,2]
[373042352,1752846638388,-460.0,0.0001669,2]
[373042355,1752846638398,-460.0,0.0001669,2]
[373042357,1752846638407,-460.0,0.0001669,2]
[373042359,1752846638417,-460.0,0.0001669,2]
[373042361,1752846638426,-460.0,0.0001669,2]
[373042363,1752846638436,-469.27011207,0.0001669,2]
[373042365,1752846638445,-460.0,0.0001669,2]
[373042367,1752846638454,-1821.61,0.0001669,2]
[373042369,1752846638463,-460.0,0.0001669,2]
[373042371,1752846638473,-435.58187126,0.0001669,2]
[373042373,1752846638482,-461.11518575,0.0001669,2]
[373042375,1752846638491,-460.0,0.0001669,2]
[373042377,1752846638501,-460.0,0.0001669,2]
[373042379,1752846638510,-460.0,0.0001669,2]
[373042381,1752846638519,-460.0,0.0001669,2]
[373042382,1752846638528,-460.0,0.0001669,2]
[373042385,1752846638538,-460.0,0.0001669,2]
[373042387,1752846638547,-460.0,0.0001669,2]
[373042389,1752846638557,-460.0,0.0001669,2]
[373042391,1752846638566,-187.95183338,0.0001669,2]
[373042393,1752846638575,-460.0,0.0001669,2]
[373042395,1752846638585,-460.0,0.0001669,2]
[373042397,1752846638594,-344.9961898,0.0001669,2]
[373042399,1752846638604,-1727.91,0.0001669,2]
[373042401,1752846638614,-460.0,0.0001669,2]
[373042403,1752846638623,-460.0,0.0001669,2]
[373042405,1752846638636,-460.0,0.0001669,2]
[373042407,1752846638645,-460.0,0.0001669,2]
[373042409,1752846638655,-1582.6,0.0001669,2]
[373042411,1752846638664,-155.9606713,0.0001669,2]
[373042413,1752846638675,-460.0,0.0001669,2]
[373042415,1752846638685,-460.0,0.0001669,2]
[373042417,1752846638694,-460.0,0.0001669,2]
[373042419,1752846638704,-460.0,0.0001669,2]
[373042421,1752846638713,-460.0,0.0001669,2]
[373042423,1752846638723,-460.0,0.0001669,2]
[373042425,1752846638732,-460.0,0.0001669,2]
[373042427,1752846638741,-460.0,0.0001669,2]
[373042429,1752846638750,-460.0,0.0001669,2]
[373042431,1752846638760,-460.0,0.0001669,2]
[373042433,1752846638769,-460.0,0.0001669,2]
[373042435,1752846638780,-460.0,0.0001669,2]
[373042437,1752846638790,-460.0,0.0001669,2]
[373042439,1752846638799,-460.0,0.0001669,2]
[373042441,1752846638808,-460.0,0.0001669,2]
[373042443,1752846638817,-460.0,0.0001669,2]
[373042445,1752846638827,-1350.12,0.0001669,2]
[373042447,1752846638836,-460.0,0.0001669,2]
[373042449,1752846638847,-460.82745468,0.0001669,2]
[373042451,1752846638856,-460.0,0.0001669,2]
[373042453,1752846638866,-460.0,0.0001669,2]
[373042455,1752846638875,-354.3329802,0.0001669,2]
[373042457,1752846638887,-460.0,0.0001669,2]
[373042459,1752846638897,-432.989402,0.0001669,2]
[373042461,1752846638906,-460.0,0.0001669,2]
[373042463,1752846638915,-460.0,0.0001669,2]
[373042465,1752846638925,-460.0,0.0001669,2]
[373042467,1752846638936,-461.08720234,0.0001669,2]
[373042469,1752846638947,-460.0,0.0001669,2]
[373042471,1752846638958,-460.0,0.0001669,2]
[373042473,1752846638967,-460.0,0.0001669,2]
[373042475,1752846638976,-460.0,0.0001669,2]
[373042477,1752846638986,-460.0,0.0001669,2]
[373042480,1752846638999,-460.0,0.0001669,2]
[373042482,1752846639008,-461.47401424,0.0001669,2]
[373042483,1752846639017,-460.0,0.0001669,2]
[373042485,1752846639027,-137.59510669,0.00016691,2]
[373042487,1752846639036,-460.0,0.00016691,2]
[373042489,1752846639046,-460.0,0.00016691,2]
[373042491,1752846639055,-460.51163011,0.00016691,2]
[373042493,1752846639066,-460.0,0.00016691,2]
[373042495,1752846639075,-460.0,0.00016691,2]
[373042497,1752846639085,-460.0,0.00016691,2]
[373042499,1752846639095,-460.0,0.00016691,2]
[373042501,1752846639104,-460.0,0.00016691,2]
[373042504,1752846639114,-460.0,0.00016691,2]
[373042505,1752846639122,-460.0,0.00016691,2]
[373042508,1752846639135,-460.0,0.00016691,2]
[373042509,1752846639145,-460.0,0.00016691,2]
[373042512,1752846639155,-460.0,0.00016691,2]
[373042513,1752846639165,-460.0,0.00016691,2]
[373042516,1752846639175,-460.0,0.00016691,2]
[373042518,1752846639185,-460.0,0.00016691,2]
[373042519,1752846639194,-460.0,0.00016691,2]
[373042522,1752846639204,-155.0,0.00016691,2]
[373042524,1752846639213,-460.0,0.00016692,2]
[373042526,1752846639222,-460.0,0.00016692,2]
[373042528,1752846639232,-460.0,0.00016692,2]
[373042529,1752846639242,-460.0,0.00016692,2]
[373042532,1752846639251,-460.0,0.00016692,2]
[373042533,1752846639260,-460.0,0.00016692,2]
[373042535,1752846639270,-460.0,0.00016692,2]
[373042537,1752846639279,-582.91817809,0.00016692,2]
[373042539,1752846639289,-460.0,0.00016692,2]
[373042541,1752846639298,-460.0,0.00016692,2]
[373042544,1752846639308,-460.0,0.00016692,2]
[373042546,1752846639318,-460.0,0.00016692,2]
[373042548,1752846639328,-460.0,0.00016692,2]
[373042550,1752846639337,-460.0,0.00016692,2]
[373042552,1752846639346,-460.0,0.00016692,2]
[373042554,1752846639355,-460.0,0.00016692,2]
[373042556,1752846639365,-500.0,0.00016692,2]
[373042557,1752846639374,-460.0,0.00016692,2]
[373042559,1752846639387,-460.0,0.00016692,2]
[373042562,1752846639397,-460.0,0.00016692,2]
[373042564,1752846639407,-460.0,0.00016692,2]
[373042566,1752846639417,-460.0,0.00016692,2]
[373042568,1752846639426,-460.0,0.00016692,2]
[373042570,1752846639436,-174.61698461,0.00016692,2]
[373042572,1752846639445,-460.0,0.00016692,2]
[373042573,1752846639454,-460.0,0.00016692,2]
[373042575,1752846639464,-460.0,0.00016692,2]
[373042577,1752846639473,-460.0,0.00016692,2]
[373042579,1752846639486,-460.0,0.00016692,2]
[373042582,1752846639495,-396.02188042,0.00016692,2]
[373042584,1752846639506,-460.0,0.00016692,2]
[373042586,1752846639515,-460.0,0.00016692,2]
[373042588,1752846639524,-460.0,0.00016692,2]
[373042590,1752846639534,-460.0,0.00016692,2]
[373042592,1752846639543,-460.0,0.00016692,2]
[373042593,1752846639553,-460.0,0.00016692,2]
[373042596,1752846639563,-460.0,0.00016692,2]
[373042598,1752846639573,-460.0,0.00016692,2]
[373042600,1752846639583,-476.33943346,0.00016692,2]
[373042604,1752846639592,-460.0,0.00016692,2]
[373042606,1752846639602,-460.0,0.00016692,2]
[373042610,1752846639612,-460.0,0.00016692,2]
[373042614,1752846639621,-460.0,0.00016692,2]
[373042617,1752846639633,-594.63,0.00016692,2]
[373042619,1752846639643,-460.0,0.00016692,2]
[373042620,1752846639652,-460.0,0.00016692,2]
[373042621,1752846639661,-460.0,0.00016692,2]
[373042622,1752846639670,-421.57995673,0.00016692,2]
[373042623,1752846639679,-466.63363584,0.00016692,2]
[373042624,1752846639688,-460.0,0.00016692,2]
[373042625,1752846639697,-460.0,0.00016692,2]
[373042626,1752846639707,-460.0,0.00016692,2]
[373042627,1752846639716,-460.0,0.00016692,2]
[373042628,1752846639725,-460.0,0.00016692,2]
[373042629,1752846639735,-460.0,0.00016692,2]
[373042630,1752846639744,-460.0,0.00016692,2]
[373042631,1752846639754,-460.0,0.00016692,2]
[373042632,1752846639763,-370.29725338,0.00016692,2]
[373042633,1752846639772,-460.0,0.00016692,2]
[373042634,1752846639781,-460.0,0.00016692,2]
[373042635,1752846639790,-460.0,0.00016692,2]
[373042636,1752846639800,-1136.15,0.00016692,2]
[373042637,1752846639810,-460.0,0.00016692,2]
[373042638,1752846639819,-901.37,0.00016692,2]
[373042639,1752846639828,-460.0,0.00016692,2]
[373042640,1752846639838,-460.0,0.00016692,2]
[373042641,1752846639847,-460.0,0.00016692,2]
[373042642,1752846639856,-460.0,0.00016692,2]
[373042643,1752846639866,-460.0,0.00016692,2]
[373042644,1752846639875,-460.0,0.00016692,2]
[373042645,1752846639885,-460.0,0.00016692,2]
[373042646,1752846639895,-460.0,0.00016692,2]
[373042647,1752846639904,-187.28,0.00016692,2]
[373042649,1752846639913,-460.0,0.00016692,2]
[373042651,1752846639923,-460.0,0.00016692,2]
[373042653,1752846639933,-460.0,0.00016692,2]
[373042655,1752846639943,-460.0,0.00016692,2]
[373042658,1752846639952,-460.0,0.00016692,2]
[373042660,1752846639962,-460.0,0.00016692,2]
[373042672,1752846640074,-460.0,0.00016692,2]
[373042674,1752846640084,-460.0,0.00016692,2]
[373042676,1752846640093,-460.0,0.00016692,2]
[373042678,1752846640102,-460.0,0.00016692,2]
[373042680,1752846640112,-460.0,0.00016693,2]
[373042682,1752846640121,-460.0,0.00016693,2]
[373042684,1752846640132,-460.0,0.00016693,2]
[373042687,1752846640141,-478.3282865,0.00016693,2]
[373042689,1752846640150,-460.0,0.00016693,2]
[373042691,1752846640159,-280.4608124,0.00016693,2]
[373042693,1752846640168,-542.17,0.00016693,2]
[373042695,1752846640178,-460.0,0.00016693,2]
[373042697,1752846640187,-460.0,0.00016693,2]
[373042699,1752846640196,-460.0,0.00016693,2]
[373042701,1752846640205,-460.0,0.00016693,2]
[373042703,1752846640215,-3239.59,0.00016694,2]
[373042705,1752846640224,-1289.85,0.00016694,2]
[373042707,1752846640233,-460.0,0.00016694,2]
[373042709,1752846640243,-460.0,0.00016695,2]
[373042711,1752846640253,-460.0,0.00016695,2]
[373042713,1752846640263,-460.0,0.00016695,2]
[373042715,1752846640272,-460.0,0.00016695,2]
[373042717,1752846640281,-460.0,0.00016695,2]
[373042719,1752846640290,-460.0,0.00016695,2]
[373042721,1752846640300,-460.0,0.00016695,2]
[373042723,1752846640310,-460.0,0.00016695,2]
[373042725,1752846640319,-469.27397708,0.00016695,2]
[373042727,1752846640328,-460.0,0.00016695,2]
[373042729,1752846640338,-460.0,0.00016695,2]
[373042731,1752846640347,-460.0,0.00016695,2]
[373042733,1752846640357,-460.0,0.00016695,2]
[373042734,1752846640366,-460.0,0.00016695,2]
[373042736,1752846640375,-500.0,0.00016695,2]
[373042738,1752846640388,-1298.35,0.00016946,2]
[373042740,1752846640398,-1845.69,0.00016946,2]
[373042742,1752846640407,-460.0,0.00016946,2]
[373042744,1752846640417,-1222.58,0.00016946,2]
[373042746,1752846640426,-318.85,0.00016956,3]
[373042748,1752846640435,-159.43,0.00016956,3]
[373042750,1752846640445,-478.3,0.00016956,3]
[373042752,1752846640455,-460.0,0.00016964,2]
[373042754,1752846640466,-460.0,0.00016964,2]
[373042756,1752846640475,-564.17282581,0.00016964,2]
[373042758,1752846640485,-460.0,0.00016964,2]
[373042760,1752846640493,-460.0,0.00016964,2]
[373042762,1752846640503,-2892.86,0.00016964,2]
[373042764,1752846640512,-460.0,0.00016964,2]
[373042766,1752846640522,-460.0,0.00016964,2]
[373042767,1752846640531,-463.75,0.00016964,2]
[373042769,1752846640540,-3857.05,0.00016964,2]
[373042771,1752846640550,-460.0,0.00016964,2]
[373042773,1752846640559,-460.0,0.00016964,2]
[373042775,1752846640569,-460.0,0.00016964,2]
[373042777,1752846640578,-460.0,0.00016964,2]
[373042779,1752846640587,-1821.61,0.00016964,2]
[373042781,1752846640596,-460.0,0.00016964,2]
[373042783,1752846640606,-460.0,0.00016964,2]
[373042785,1752846640615,-460.0,0.00016964,2]
[373042787,1752846640624,-460.0,0.00016964,2]
[373042789,1752846640634,-460.0,0.00016964,2]
[373042791,1752846640643,-1727.91,0.00016964,2]
[373042793,1752846640653,-460.0,0.00016964,2]
[373042795,1752846640662,-460.0,0.00016964,2]
[373042797,1752846640671,-1582.6,0.00016964,2]
[373042799,1752846640680,-170.19990999,0.00016964,2]
[373042801,1752846640689,-460.0,0.00016964,2]
[373042803,1752846640699,-460.0,0.00016964,2]
[373042805,1752846640708,-460.0,0.00016964,2]
[373042807,1752846640718,-460.0,0.00016964,2]
[373042809,1752846640727,-460.0,0.00016964,2]
[373042811,1752846640736,-1350.12,0.00016964,2]
[373042813,1752846640745,-460.0,0.00016964,2]
[373042815,1752846640755,-228.90264443,0.00016964,2]
[373042817,1752846640764,-460.0,0.00016964,2]
[373042818,1752846640773,-460.0,0.00016964,2]
[373042820,1752846640782,-460.0,0.00016964,2]
[373042822,1752846640792,-480.46685873,0.00016964,2]
[373042824,1752846640801,-460.0,0.00016964,2]
[373042826,1752846640810,-460.0,0.00016964,2]
[373042828,1752846640820,-460.0,0.00016965,2]
[373042830,1752846640829,-460.0,0.00016965,2]
[373042832,1752846640838,-560.15945798,0.00016965,2]
[373042834,1752846640847,-460.0,0.00016965,2]
[373042836,1752846640857,-460.0,0.00016965,2]
[373042838,1752846640867,-460.0,0.00016965,2]
[373042840,1752846640876,-460.0,0.00016965,2]
[373042842,1752846640887,-460.0,0.00016965,2]
[373042844,1752846640896,-460.0,0.00016965,2]
[373042846,1752846640905,-460.0,0.00016965,2]
[373042848,1752846640915,-460.0,0.00016965,2]
[373042850,1752846640925,-460.0,0.00016965,2]
[373042852,1752846640934,-460.0,0.00016965,2]
[373042854,1752846640944,-455.01697286,0.00016965,2]
[373042856,1752846640953,-460.0,0.00016966,2]
[373042858,1752846640963,-460.0,0.00016966,2]
[373042860,1752846640972,-460.0,0.00016966,2]
[373042862,1752846640981,-460.0,0.00016966,2]
[373042864,1752846640994,-440.0,0.00016966,2]
[373042866,1752846641003,-460.0,0.00016966,2]
[373042868,1752846641013,-500.0,0.00016966,2]
[373042870,1752846641022,-500.0,0.00016966,2]
[373042872,1752846641032,-460.0,0.00016966,2]
[373042874,1752846641043,-429.8433681,0.00016966,2]
[373042876,1752846641053,-460.0,0.00016966,2]
[373042878,1752846641062,-460.0,0.00016966,2]
[373042880,1752846641073,-460.0,0.00016966,2]
[373042882,1752846641084,-460.0,0.00016966,2]
[373042884,1752846641094,-460.0,0.00016966,2]
[373042886,1752846641103,-460.0,0.00016966,2]
[373042888,1752846641113,-460.0,0.00016966,2]
[373042890,1752846641122,-460.0,0.00016966,2]
[373042892,1752846641132,-460.0,0.00016966,2]
[373042893,1752846641142,-460.0,0.00016966,2]
[373042895,1752846641151,-460.0,0.00016966,2]
[373042898,1752846641162,-460.0,0.00016966,2]
[373042900,1752846641171,-460.0,0.00016966,2]
[373042901,1752846641181,-460.0,0.00016966,2]
[373042903,1752846641191,-594.63,0.00016966,2]
[373042905,1752846641202,-460.0,0.00016966,2]
[373042907,1752846641211,-460.0,0.00016966,2]
[373042909,1752846641220,-460.0,0.00016966,2]
[373042911,1752846641230,-460.0,0.00016966,2]
[373042913,1752846641240,-460.0,0.00016966,2]
[373042915,1752846641249,-460.0,0.00016966,2]
[373042917,1752846641258,-460.0,0.00016966,2]
[373042919,1752846641268,-460.0,0.00016966,2]
[373042921,1752846641277,-460.0,0.00016966,2]
[373042923,1752846641286,-460.0,0.00016966,2]
[373042925,1752846641295,-460.0,0.00016966,2]
[373042927,1752846641305,-1136.15,0.00016966,2]
[373042929,1752846641314,-460.0,0.00016966,2]
[373042931,1752846641323,-901.37,0.00016966,2]
[373042933,1752846641333,-460.0,0.00016966,2]
[373042935,1752846641342,-460.0,0.00016966,2]
[373042937,1752846641351,-460.0,0.00016966,2]
[373042939,1752846641361,-460.0,0.00016966,2]
[373042941,1752846641370,-460.0,0.00016966,2]
[373042943,1752846641381,-460.0,0.00016966,2]
[373042945,1752846641390,-460.0,0.00016966,2]
[373042947,1752846641399,-460.0,0.00016966,2]
[373042949,1752846641408,-460.0,0.00016966,2]
[373042951,1752846641418,-460.0,0.00016966,2]
[373042953,1752846641427,-460.0,0.00016966,2]
[373042955,1752846641437,-460.0,0.00016966,2]
[373042957,1752846641446,-460.0,0.00016966,2]
[373042959,1752846641455,-460.0,0.00016966,2]
[373042961,1752846641465,-460.0,0.00016967,2]
[373042963,1752846641474,-460.0,0.00016967,2]
[373042965,1752846641484,-460.0,0.00016967,2]